fUSD/lending_fUSD_20251224
["ID","MTS","AMOUNT","RATE_DAILY","PERIOD"]
[399677293,1766609028804,3524.41255055,7.142e-05,2]
[399677294,1766609029213,1332.15493934,7.482e-05,2]
[399677295,1766609029237,2430.54506066,7.482e-05,2]
[399677296,1766609029395,2426.02242923,7.823e-05,2]
[399677297,1766609029421,1336.67757077,7.823e-05,2]
[399677298,1766609029605,3519.88991912,8.163e-05,2]
[399677299,1766609029629,242.81008088,8.163e-05,2]
[399677300,1766609029816,3762.7,8.503e-05,2]
[399677301,1766609030057,851.05740901,8.843e-05,2]
[399677302,1766609030081,2911.64259099,8.843e-05,2]
[399677303,1766609030407,1944.9248989,9.183e-05,2]
[399677304,1766609030434,1817.7751011,9.183e-05,2]
[399677305,1766609030598,3762.7,9.523e-05,2]
[399677306,1766609030794,251.74322123,9.863e-05,2]
[399677307,1766609030818,3510.95677877,9.863e-05,2]
[399677308,1766609033439,-260.54592623,0.00010203,2]
[399677309,1766609037923,-181.99688653,0.00010203,2]
[399677310,1766609040074,-193.23795303,0.00010203,2]
[399677311,1766609041633,-411.78225442,0.00010203,2]
[399677312,1766609045623,-310.58220187,0.00010203,2]
[399677313,1766609048375,-241.96196376,0.00010203,2]
[399677314,1766609049968,-193.96342509,0.00010203,2]
[399677315,1766609052449,-181.01732946,0.00010203,2]
[399677316,1766609053614,-209.08747148,0.00010203,2]
[399677317,1766609056575,-476.4116144,0.00010203,2]
[399677318,1766609059724,-250.0,0.00010203,2]
[399677319,1766609061277,-223.81457857,0.00010203,2]
[399677320,1766609067094,-376.07447028,0.00010203,2]
[399677321,1766609069448,-252.22392488,0.00010203,2]
[399677322,1766609069472,-376.76442354,0.00010543,2]
[399677323,1766609072058,-324.40644022,0.00010543,2]
[399677324,1766609075696,-166.33236124,0.00010543,2]
[399677325,1766609077189,-192.75356912,0.00010543,2]
[399677326,1766609079041,-387.67651302,0.00010543,2]
[399677327,1766609080211,-414.69667252,0.00010543,2]
[399677328,1766609084350,-287.53022747,0.00010543,2]
[399677329,1766609088404,-257.47681572,0.00010543,2]
[399677330,1766609090952,-242.78048737,0.00010543,2]
[399677331,1766609093506,-500.0,0.00010543,2]
[399677332,1766609094909,-500.0,0.00010543,2]
[399677333,1766609097097,-112.28248978,0.00010543,2]
[399677334,1766609097535,-48.45787967,0.00010883,2]
[399677335,1766609101782,-170.61170235,0.00010883,2]
[399677336,1766609103210,-178.68706295,0.00010883,2]
[399677337,1766609108188,-478.23400689,0.00010883,2]
[399677338,1766609111195,-243.83467746,0.00010883,2]
[399677339,1766609112182,-186.94892859,0.00010883,2]
[399677340,1766609115014,-177.44729373,0.00010883,2]
[399677341,1766609119736,-174.69389026,0.00010883,2]
[399677342,1766609121543,-450.65451897,0.00010883,2]
[399677343,1766609123846,-398.40954132,0.00010883,2]
[399677344,1766609129268,-187.44435304,0.00010883,2]
[399677345,1766609131358,-424.01315613,0.00010883,2]
[399677346,1766609134469,-241.86774254,0.00010883,2]
[399677347,1766609140349,-332.96193023,0.00010883,2]
[399677348,1766609141852,-68.43331587,0.00010883,2]
[399677349,1766609141874,-300.0,0.00011224,2]
[399677350,1766609141900,-15.95332046,0.00011224,2]
[399677351,1766609143782,-270.51925839,0.00011224,2]
[399677352,1766609148591,-284.97678517,0.00011224,2]
[399677353,1766609150682,-516.43991956,0.00011224,2]
[399677354,1766609152150,-237.55084789,0.00011224,2]
[399677355,1766609157640,-328.4,0.00011224,2]
[399677356,1766609159154,-176.9592039,0.00011224,2]
[399677357,1766609160716,-423.0407961,0.00011224,2]
[399677358,1766609163837,-385.58142651,0.00011224,2]
[399677359,1766609166110,-398.4677256,0.00011224,2]
[399677360,1766609169099,-398.8853872,0.00011224,2]
[399677361,1766609171887,-190.30025053,0.00011224,2]
[399677362,1766609175833,-135.62507869,0.00011224,2]
[399677363,1766609175856,-213.09068168,0.00011562,2]
[399677364,1766609178529,-86.90931832,0.00011562,2]
[399677365,1766609178555,-108.09068168,0.00011563,2]
[399677366,1766609181761,-191.90931832,0.00011563,2]
[399677367,1766609181789,-94.56510974,0.00011563,2]
[399677368,1766609185001,-171.43121784,0.00011563,2]
[399677369,1766609186660,-264.27237057,0.00011563,2]
[399677370,1766609188466,-356.72506636,0.00011563,2]
[399677371,1766609191395,-313.00623549,0.00011563,2]
[399677372,1766609191418,-56.70303718,0.00011563,2]
[399677373,1766609194268,-243.29696282,0.00011563,2]
[399677374,1766609194293,-130.95409214,0.00011564,2]
[399677375,1766609196711,-263.6110176,0.00011564,2]
[399677376,1766609199510,-302.0,0.00011564,2]
[399677377,1766609200952,-158.10105491,0.00011564,2]
[399677378,1766609203812,-253.37020507,0.00011564,2]
[399677379,1766609206373,-276.18542143,0.00011564,2]
[399677380,1766609208088,-217.24974914,0.00011564,2]
[399677381,1766609209940,-269.83861556,0.00011564,2]
[399677382,1766609212014,-269.4494774,0.00011564,2]
[399677383,1766609213887,-363.7208723,0.00011564,2]
[399677384,1766609216289,-206.21057752,0.00011564,2]
[399677385,1766609220586,-238.02179816,0.00011564,2]
[399677386,1766609222117,-573.38984558,0.00011564,2]
[399677387,1766609223659,1120.2587144,0.00013412,3]
[399677388,1766609225742,-155.40723773,0.00011564,2]
[399677389,1766609230017,-85.19003546,0.00011564,2]
[399677390,1766609230043,-71.91834082,0.00011904,2]
[399677391,1766609230835,206.21057752,0.00013412,3]
[399677392,1766609231473,-182.95894289,0.00011904,2]
[399677393,1766609232883,-186.76079932,0.00011904,2]
[399677394,1766609235942,-177.51129555,0.00011904,2]
[399677395,1766609237746,-212.7089321,0.00011904,2]
[399677396,1766609241207,-397.97228736,0.00011904,2]
[399677397,1766609243415,-209.02313918,0.00011904,2]
[399677398,1766609245146,-605.95025083,0.00011904,2]
[399677399,1766609247725,-198.47416993,0.00011904,2]
[399677400,1766609250288,-300.0,0.00011904,2]
[399677401,1766609251773,-296.69520445,0.00011904,2]
[399677402,1766609253980,-229.00461773,0.00011904,2]
[399677403,1766609258207,-207.40171944,0.00011904,2]
[399677404,1766609259499,-210.0,0.00011904,2]
[399677405,1766609263192,-260.92763524,0.00011904,2]
[399677406,1766609265151,-15.39266516,0.00011904,2]
[399677407,1766609265173,-199.46758615,0.00012187,2]
[399677408,1766609266585,-184.60791368,0.00012187,2]
[399677409,1766609268013,-323.32876253,0.00012187,2]
[399677410,1766609271071,-210.46176332,0.00012181,2]
[399677411,1766609272626,-411.97544388,0.00012181,2]
[399677412,1766609275594,-287.21469149,0.00012181,2]
[399677413,1766609279073,-205.13529122,0.00012181,2]
[399677414,1766609281386,-388.94170341,0.00012181,2]
[399677415,1766609284435,-326.84110668,0.00012181,2]
[399677416,1766609284458,-152.06562339,0.00012187,2]
[399677417,1766609288316,-140.53011425,0.00012187,2]
[399677418,1766609288340,-44.81519767,0.00012244,2]
[399677419,1766609290395,-293.44463635,0.00012244,2]
[399677420,1766609292575,-300.0,0.00012244,2]
[399677421,1766609294136,-267.36563553,0.00012244,2]
[399677422,1766609295670,-263.07859906,0.00012244,2]
[399677423,1766609298038,-178.09603618,0.00012206,2]
[399677424,1766609300597,-193.94170341,0.00012206,2]
[399677425,1766609303255,-384.02457248,0.00012206,2]
[399677426,1766609305388,-269.69195794,0.00012206,2]
[399677427,1766609307752,-599.32209457,0.00012206,2]
[399677428,1766609309605,-236.26317538,0.00012206,2]
[399677429,1766609312545,-258.41362041,0.00012206,2]
[399677430,1766609313929,-279.67423165,0.00012206,2]
[399677431,1766609316826,-202.62079403,0.00012206,2]
[399677432,1766609319488,-271.09883955,0.00012206,2]
[399677433,1766609322381,-249.0266582,0.00012206,2]
[399677434,1766609323828,-200.0,0.00012191,2]
[399677435,1766609323850,-120.43004117,0.00012206,2]
[399677436,1766609325855,-199.89974915,0.00012206,2]
[399677437,1766609328014,-224.58067817,0.00012206,2]
[399677438,1766609331189,-395.91119921,0.00012206,2]
[399677439,1766609332632,-385.95788034,0.00012206,2]
[399677440,1766609335886,-222.5891991,0.00012206,2]
[399677441,1766609337449,-181.12675976,0.00012206,2]
[399677442,1766609340221,-173.30744831,0.00012206,2]
[399677443,1766609343147,-292.42996954,0.00012206,2]
[399677444,1766609347106,-442.46819843,0.00012206,2]
[399677445,1766609349774,-222.33141467,0.00012206,2]
[399677446,1766609352673,-316.06768111,0.00012206,2]
[399677447,1766609354138,-2626.65609724,0.00012206,2]
[399677448,1766609354161,-250.0,0.00012225,2]
[399677449,1766609354186,-837.99607476,0.00012244,2]
[399677450,1766609354897,-502.72372436,0.00012244,2]
[399677451,1766609357828,-307.37807078,0.00012244,2]
[399677452,1766609363468,-363.10651645,0.00012244,2]
[399677453,1766609366214,-582.79154504,0.00012244,2]
[399677454,1766609366238,-23.0209756,0.00012303,2]
[399677455,1766609368369,-386.98026882,0.00012303,2]
[399677456,1766609369861,-272.2805468,0.00012303,2]
[399677457,1766609372674,-315.34295162,0.00012303,2]
[399677458,1766609375832,-197.89081002,0.00012303,2]
[399677459,1766609378525,-4.48444714,0.00012303,2]
[399677460,1766609378550,-366.16165286,0.00012304,2]
[399677461,1766609381698,-195.0,0.00012215,2]
[399677462,1766609384966,-163.18300334,0.00012215,2]
[399677463,1766609386913,-234.69882905,0.00012215,2]
[399677464,1766609388032,-264.84966531,0.00012215,2]
[399677465,1766609390305,-296.40985861,0.00012215,2]
[399677466,1766609392576,-197.31864369,0.00012215,2]
[399677467,1766609392599,-173.74316327,0.00012304,2]
[399677468,1766609396217,-290.56774108,0.00012304,2]
[399677469,1766609400767,-3587.66255721,0.00012304,2]
[399677470,1766609400791,-2824.68488558,0.00012304,2]
[399677471,1766609400903,-281.81780859,0.00012379,2]
[399677472,1766609402368,-267.35514473,0.00012379,2]
[399677473,1766609404412,-162.64236034,0.00012379,2]
[399677474,1766609406104,-57.16468634,0.00012379,2]
[399677475,1766609406132,-175.18644466,0.00012443,2]
[399677476,1766609408052,-215.14989761,0.00012443,2]
[399677477,1766609410794,-201.20365773,0.00012443,2]
[399677478,1766609410817,-132.84844294,0.00012583,2]
[399677479,1766609412811,-17.15155706,0.00012583,2]
[399677480,1766609412836,-217.5361933,0.00012583,2]
[399677481,1766609418658,-82.4638067,0.00012583,2]
[399677482,1766609418680,-217.5361933,0.00012583,2]
[399677483,1766609420782,-82.4638067,0.00012583,2]
[399677484,1766609420806,-149.35469986,0.00012583,2]
[399677485,1766609424078,-291.47211502,0.00012583,2]
[399677486,1766609426367,-300.0,0.00012583,2]
[399677487,1766609428855,-170.24023428,0.00012583,2]
[399677493,1766609431307,-288.93295084,0.00012583,2]
[399677495,1766609431318,-3762.7,0.00012584,2]
[399677497,1766609431328,-150.99,0.00012584,2]
[399677499,1766609431338,-7622.43,0.00012584,2]
[399677502,1766609431348,-299.99,0.00012584,2]
[399677504,1766609431358,-9999.99,0.00012584,2]
[399677506,1766609431368,-250.0,0.0001272,2]
[399677508,1766609431378,-347.0,0.00012782,2]
[399677509,1766609431388,-156.0,0.00012807,2]
[399677510,1766609431398,-284.0,0.00012833,2]
[399677511,1766609431408,-446.35828294,0.00012897,2]
[399677512,1766609431419,-1196.0,0.00012918,2]
[399677513,1766609431430,-3762.7,0.00012924,2]
[399677514,1766609431440,-777.0,0.00012986,2]
[399677515,1766609431449,-1862.0,0.00013012,2]
[399677516,1766609431460,-300.0,0.00013094,2]
[399677517,1766609431470,-323.66058424,0.000131,2]
[399677518,1766609431480,-150.0,0.00013137,2]
[399677519,1766609431491,-500.0,0.00013138,2]
[399677520,1766609431501,-500.0,0.00013138,2]
[399677521,1766609431510,-150.0,0.00013138,2]
[399677522,1766609431520,-150.0,0.00013138,2]
[399677523,1766609431530,-150.0,0.00013164,2]
[399677524,1766609431540,-500.0,0.00013165,2]
[399677525,1766609431551,-500.0,0.00013165,2]
[399677526,1766609431561,-150.0,0.00013165,2]
[399677527,1766609431571,-150.0,0.00013192,2]
[399677528,1766609431581,-500.0,0.00013193,2]
[399677530,1766609431591,-500.0,0.00013193,2]
[399677532,1766609431601,-206.58520274,0.00013193,2]
[399677534,1766609431611,-291.49880842,0.00013219,2]
[399677536,1766609431621,-500.0,0.0001322,2]
[399677538,1766609431631,-500.0,0.0001322,2]
[399677540,1766609431640,-264.9740596,0.00013238,2]
[399677542,1766609431650,-500.0,0.00013238,2]
[399677545,1766609431660,-475.90699347,0.00013238,2]
[399677548,1766609431672,-500.0,0.00013238,2]
[399677550,1766609431682,-555.89479131,0.00013238,2]
[399677552,1766609431692,-352.29594973,0.00013238,2]
[399677554,1766609431701,-555.89479131,0.00013238,2]
[399677556,1766609431711,-555.89479131,0.00013238,2]
[399677558,1766609431721,-500.0,0.00013238,2]
[399677560,1766609431730,-555.89479131,0.00013238,2]
[399677562,1766609431741,-555.89479131,0.00013238,2]
[399677564,1766609431750,-500.0,0.00013238,2]
[399677566,1766609431759,-555.89479131,0.00013238,2]
[399677568,1766609431769,-500.0,0.00013238,2]
[399677570,1766609431778,-555.89479131,0.00013238,2]
[399677572,1766609431788,-555.89479131,0.00013238,2]
[399677574,1766609431797,-555.89479131,0.00013238,2]
[399677576,1766609431807,-555.89479131,0.00013238,2]
[399677578,1766609431817,-555.89479131,0.00013238,2]
[399677580,1766609431826,-555.89479131,0.00013238,2]
[399677582,1766609431837,-555.89479131,0.00013238,2]
[399677584,1766609431847,-555.89479131,0.00013238,2]
[399677586,1766609431858,-555.89479131,0.00013238,2]
[399677588,1766609431867,-555.89479131,0.00013238,2]
[399677590,1766609431877,-555.89479131,0.00013238,2]
[399677592,1766609431887,-555.89479131,0.00013238,2]
[399677594,1766609431897,-555.89479131,0.00013238,2]
[399677597,1766609431907,-555.89479131,0.00013238,2]
[399677599,1766609431916,-377.86986133,0.00013238,2]
[399677601,1766609431929,-178.02492998,0.00013238,2]
[399677603,1766609431939,-555.89479131,0.00013238,2]
[399677605,1766609431949,-555.89479131,0.00013238,2]
[399677607,1766609431959,-555.89479131,0.00013238,2]
[399677609,1766609431968,-555.89479131,0.00013238,2]
[399677611,1766609431977,-555.89479131,0.00013238,2]
[399677613,1766609431987,-555.89479131,0.00013238,2]
[399677615,1766609431996,-555.89479131,0.00013238,2]
[399677616,1766609432006,-555.89479131,0.00013238,2]
[399677618,1766609432016,-555.89479131,0.00013238,2]
[399677621,1766609432026,-555.89479131,0.00013238,2]
[399677623,1766609432036,-555.89479131,0.00013238,2]
[399677624,1766609432046,-522.25822561,0.00013238,2]
[399677626,1766609432063,-33.6365657,0.00013238,2]
[399677627,1766609432073,-360.54061679,0.00013238,2]
[399677628,1766609432090,-195.35417452,0.00013238,2]
[399677629,1766609432100,-555.89479131,0.00013238,2]
[399677630,1766609432110,-555.89479131,0.00013238,2]
[399677631,1766609432121,-555.89479131,0.00013238,2]
[399677632,1766609432133,-555.89479131,0.00013238,2]
[399677633,1766609432143,-11.15014953,0.00013238,2]
[399677634,1766609432156,-544.74464178,0.00013238,2]
[399677635,1766609432167,-101.87553896,0.00013238,2]
[399677636,1766609432221,-454.01925235,0.00013238,2]
[399677637,1766609432231,-7.15436367,0.00013238,2]
[399677638,1766609432243,-548.74042764,0.00013238,2]
[399677639,1766609432253,-452.24957236,0.00013238,2]
[399677640,1766609432266,-103.64521895,0.00013238,2]
[399677641,1766609432275,-424.04576672,0.00013238,2]
[399677642,1766609432288,-131.84902459,0.00013238,2]
[399677643,1766609432298,-275.9008224,0.00013238,2]
[399677644,1766609432318,-279.99396891,0.00013238,2]
[399677645,1766609432327,-555.89479131,0.00013238,2]
[399677646,1766609432337,-555.89479131,0.00013238,2]
[399677647,1766609432347,-555.89479131,0.00013238,2]
[399677648,1766609432356,-1159.79573209,0.00013238,2]
[399677649,1766609432366,-514.79938915,0.00013238,2]
[399677652,1766609437406,-644.99634294,0.00013238,2]
[399677653,1766609437415,-1159.79573209,0.00013238,2]
[399677654,1766609437425,-1159.79573209,0.00013238,2]
[399677655,1766609437434,-1159.79573209,0.00013238,2]
[399677657,1766609437444,-1159.79573209,0.00013238,2]
[399677658,1766609437454,-1159.79573209,0.00013238,2]
[399677659,1766609437464,-1159.79573209,0.00013238,2]
[399677660,1766609437474,-1159.79573209,0.00013238,2]
[399677661,1766609437484,-1159.79573209,0.00013238,2]
[399677662,1766609437493,-1159.79573209,0.00013238,2]
[399677663,1766609437502,-1159.79573209,0.00013238,2]
[399677664,1766609437512,-762.05633612,0.00013238,2]
[399677665,1766609437534,-397.73939597,0.00013238,2]
[399677666,1766609437543,-242.07750073,0.00013238,2]
[399677667,1766609437555,-917.71823136,0.00013238,2]
[399677668,1766609437566,-1159.79573209,0.00013238,2]
[399677669,1766609437577,-1159.79573209,0.00013238,2]
[399677670,1766609437587,-1159.79573209,0.00013238,2]
[399677671,1766609437596,-1159.79573209,0.00013238,2]
[399677672,1766609437605,-1159.79573209,0.00013238,2]
[399677673,1766609437615,-1159.79573209,0.00013238,2]
[399677674,1766609437624,-1159.79573209,0.00013238,2]
[399677675,1766609437634,-1159.79573209,0.00013238,2]
[399677676,1766609437643,-1159.79573209,0.00013238,2]
[399677677,1766609437653,-1159.79573209,0.00013238,2]
[399677678,1766609437663,-1159.79573209,0.00013238,2]
[399677679,1766609437672,-1159.79573209,0.00013238,2]
[399677681,1766609437683,-1159.79573209,0.00013238,2]
[399677682,1766609437692,-1159.79573209,0.00013238,2]
[399677683,1766609437701,-1159.79573209,0.00013238,2]
[399677684,1766609437711,-1159.79573209,0.00013238,2]
[399677685,1766609437720,-1159.79573209,0.00013238,2]
[399677686,1766609437729,-1159.79573209,0.00013238,2]
[399677688,1766609437738,-1159.79573209,0.00013238,2]
[399677690,1766609437748,-1159.79573209,0.00013238,2]
[399677691,1766609437757,-1179.93107468,0.00013238,2]
[399677692,1766609437767,-1179.93107468,0.00013238,2]
[399677693,1766609437776,-1179.93107468,0.00013238,2]
[399677694,1766609437786,-1179.93107468,0.00013238,2]
[399677696,1766609437795,-1179.93107468,0.00013238,2]
[399677698,1766609437804,-1179.93107468,0.00013238,2]
[399677699,1766609437813,-519.96638874,0.00013238,2]
[399677700,1766609437825,-659.96468594,0.00013238,2]
[399677701,1766609437834,-1179.93107468,0.00013238,2]
[399677702,1766609437844,-1208.11,0.00013238,2]
[399677703,1766609437854,-500.0,0.00013238,2]
[399677704,1766609437864,-461.02491103,0.00013248,2]
[399677705,1766609437873,-16715.14159127,0.00013311,2]
[399677706,1766609437884,-658.47843359,0.00013311,2]
[399677707,1766609439430,-37281.30467514,0.00013311,2]
[399677708,1766609439441,-660.667147,0.00013313,2]
[399677709,1766609439451,-197.58544258,0.00013315,2]
[399677710,1766609439461,-639.00159246,0.00013315,2]
[399677711,1766609439471,-18262.11602893,0.00013316,2]
[399677712,1766609439480,-1000.0,0.00013377,2]
[399677713,1766609439491,-155.53883647,0.00013402,2]
[399677714,1766609439501,-207.4,0.00013406,2]
[399677715,1766609439511,-151.0,0.00013406,2]
[399677716,1766609439520,-151.0,0.00013406,2]
[399677717,1766609439531,-153.43746121,0.00013406,2]
[399677718,1766609439540,-151.0,0.00013406,2]
[399677719,1766609439550,-500.0,0.00013406,2]
[399677720,1766609439561,-151.0,0.00013406,2]
[399677721,1766609439571,-500.0,0.00013406,2]
[399677722,1766609439582,-500.0,0.00013406,2]
[399677723,1766609439598,-151.0,0.00013406,2]
[399677724,1766609439607,-500.0,0.00013406,2]
[399677725,1766609439617,-151.0,0.00013406,2]
[399677726,1766609439627,-200.0,0.00013406,2]
[399677727,1766609439636,-500.0,0.00013406,2]
[399677728,1766609439645,-151.0,0.00013406,2]
[399677729,1766609439655,-500.0,0.00013406,2]
[399677730,1766609439664,-151.0,0.00013406,2]
[399677731,1766609439673,-500.0,0.00013406,2]
[399677732,1766609439682,-151.0,0.00013406,2]
[399677733,1766609439692,-500.0,0.00013406,2]
[399677734,1766609439701,-151.0,0.00013406,2]
[399677735,1766609439710,-500.0,0.00013406,2]
[399677736,1766609439720,-151.0,0.00013406,2]
[399677737,1766609439729,-500.0,0.00013406,2]
[399677738,1766609439738,-151.0,0.00013406,2]
[399677739,1766609439748,-500.0,0.00013406,2]
[399677740,1766609439757,-151.0,0.00013406,2]
[399677741,1766609439767,-200.0,0.00013406,2]
[399677742,1766609439776,-500.0,0.00013406,2]
[399677743,1766609439786,-1000.0,0.00013411,2]
[399677744,1766609439796,-151.0,0.00013411,2]
[399677745,1766609439806,-9999.99,0.00013413,2]
[399677746,1766609439815,-9999.99,0.00013413,2]
[399677747,1766609439825,-9999.99,0.00013413,2]
[399677748,1766609439835,-150.99,0.00013413,2]
[399677749,1766609439844,-999.99,0.00013413,2]
[399677750,1766609439854,-3982.97,0.00013413,2]
[399677751,1766609439863,-2901.459,0.00013413,2]
[399677752,1766609439873,-338.728,0.00013413,2]
[399677754,1766609439887,-3070.66957161,0.00013413,2]
[399677756,1766609439912,-415.09051522,0.00013413,2]
[399677758,1766609439926,-1700.0,0.00013413,2]
[399677761,1766609439941,-3081.2228801,0.00013413,2]
[399677766,1766609439980,-342.93822665,0.00013413,2]
[399677777,1766609441844,-1.7e-07,0.00013413,2]
[399677792,1766609442537,-1080.02346967,0.00013413,2]
[399677793,1766609442589,-304.30313845,0.00013413,2]
[399677794,1766609442601,-2160.70713976,0.00013413,2]
[399677795,1766609442809,-748.63230573,0.00013413,2]
[399677796,1766609442842,-3081.29659313,0.00013413,2]
[399677797,1766609442854,-340.86111214,0.00013413,2]
[399677814,1766609445419,-1606.81843751,0.00013413,2]
[399677815,1766609445478,-655.29815995,0.00013413,2]
[399677816,1766609445491,-490.520002,0.00013413,2]
[399677817,1766609445503,-341.32290013,0.00013413,2]
[399677826,1766609538156,-150.0,0.00013128,2]
[399677827,1766609538186,-261.36621664,0.00013237,2]
[399677828,1766609538221,-500.0,0.00013237,2]
[399677829,1766609538257,-500.0,0.00013237,2]
[399677830,1766609538291,-500.0,0.00013237,2]
[399677831,1766609538324,-500.0,0.00013237,2]
[399677832,1766609538357,-500.0,0.00013237,2]
[399677833,1766609538390,-500.0,0.00013237,2]
[399677834,1766609538422,-500.0,0.00013237,2]
[399677835,1766609538454,-500.0,0.00013237,2]
[399677836,1766609538487,-568.81437361,0.00013237,2]
[399677837,1766609538508,-150.0,0.00013237,2]
[399677838,1766609538524,-261.36621664,0.00013237,2]
[399677839,1766609538539,-88.63378336,0.00013237,2]
[399677840,1766609538549,-411.36621664,0.00013237,2]
[399677841,1766609538573,-88.63378336,0.00013237,2]
[399677842,1766609538582,-411.36621664,0.00013237,2]
[399677843,1766609538613,-88.63378336,0.00013237,2]
[399677844,1766609538623,-411.36621664,0.00013237,2]
[399677845,1766609538635,-88.63378336,0.00013237,2]
[399677846,1766609538645,-411.36621664,0.00013237,2]
[399677847,1766609538657,-88.63378336,0.00013237,2]
[399677848,1766609538666,-411.36621664,0.00013237,2]
[399677849,1766609538689,-88.63378336,0.00013237,2]
[399677850,1766609538699,-411.36621664,0.0001331,2]
[399677851,1766609538715,-35.93489808,0.0001331,2]
[399677852,1766609538725,-200.0,0.00013406,2]
[399677853,1766609538735,-150.0,0.00013412,2]
[399677854,1766609538744,-114.06510192,0.00013412,2]
[399677855,1766609538756,-185.93489808,0.00013412,2]
[399677856,1766609538766,-314.06510192,0.00013413,2]
[399677857,1766609538785,-568.81437361,0.00013413,2]
[399677858,1766609538801,-39.6488195,0.00013413,2]
[399677859,1766609539007,-533.64737108,0.00013413,2]
[399677860,1766609547457,-150.0,0.00013128,2]
[399677861,1766609547488,-150.0,0.00013155,2]
[399677862,1766609547524,-210.99318264,0.00013183,2]
[399677863,1766609547555,-500.0,0.00013406,2]
[399677864,1766609547586,-170.66882116,0.00013406,2]
[399677865,1766609547616,-500.0,0.00013406,2]
[399677866,1766609547647,-200.0,0.00013406,2]
[399677867,1766609547671,-150.0,0.00013413,2]
[399677868,1766609547824,-150.0,0.00013413,2]
[399677869,1766609547844,-210.99318264,0.00013413,2]
[399677870,1766609547876,-500.0,0.00013413,2]
[399677871,1766609547912,-170.66882116,0.00013413,2]
[399677872,1766609547931,-500.0,0.00013413,2]
[399677873,1766609547973,-200.0,0.00013413,2]
[399677874,1766609547986,-6236.6859924,0.00013413,2]
[399677875,1766609565255,-10000.01,0.00013062,2]
[399677876,1766609565483,-587.892337,0.00013062,2]
[399677877,1766609565514,-155.53883647,0.00013326,2]
[399677878,1766609565533,-587.892337,0.00013413,2]
[399677879,1766609565549,-155.53883647,0.00013413,2]
[399677880,1766609565561,-8513.14765306,0.00013413,2]
[399677881,1766609565601,-2179.39694106,0.00013413,2]
[399677882,1766609565614,-5641.21611788,0.00013413,2]
[399677883,1766609565624,-1577.15,0.00013413,2]
[399677884,1766609565634,-300.0,0.00013413,2]
[399677885,1766609565645,-150.0,0.00013413,2]
[399677886,1766609566336,10000.01,0.00013326,2]
[399677887,1766609566361,8180.86325728,0.00013326,2]
[399677888,1766609569681,-232.21514264,0.00013414,2]
[399677889,1766609572000,-403.50834349,0.00013414,2]
[399677890,1766609574104,-267.33747421,0.00013414,2]
[399677891,1766609576778,-156.41160817,0.00013414,2]
[399677892,1766609578402,-175.38518518,0.00013414,2]
[399677893,1766609579923,-235.03074842,0.00013414,2]
[399677894,1766609581345,372.81551728,0.00013365,2]
[399677895,1766609581545,500.0,0.00013237,2]
[399677896,1766609581593,189.07078654,0.00013237,2]
[399677897,1766609581790,500.0,0.00013237,2]
[399677898,1766609584428,207.5741399,0.00013413,2]
[399677899,1766609584706,49.686299,0.00013237,2]
[399677900,1766609584733,450.313701,0.00013237,2]
[399677901,1766609584773,500.0,0.00013237,2]
[399677902,1766609584812,500.0,0.00013237,2]
[399677903,1766609584856,500.0,0.00013237,2]
[399677904,1766609585216,500.0,0.00013237,2]
[399677905,1766609585263,500.0,0.00013237,2]
[399677906,1766609585303,500.0,0.00013237,2]
[399677907,1766609585345,500.0,0.00013237,2]
[399677908,1766609585389,500.0,0.00013237,2]
[399677909,1766609585437,500.0,0.00013237,2]
[399677910,1766609585486,500.0,0.00013237,2]
[399677911,1766609585538,500.0,0.00013237,2]
[399677912,1766609585590,500.0,0.00013237,2]
[399677913,1766609585633,500.0,0.00013237,2]
[399677914,1766609585676,500.0,0.00013237,2]
[399677915,1766609585719,500.0,0.00013237,2]
[399677916,1766609585757,500.0,0.00013237,2]
[399677917,1766609585796,500.0,0.00013237,2]
[399677918,1766609585834,500.0,0.00013237,2]
[399677919,1766609585874,549.696299,0.00013237,2]
[399677920,1766609585898,7.26851039,0.00013237,2]